bitfinex-derivatives/quotes_SOLF0:USTF0_20260226
["timestamp","ask_amount","ask_price","bid_price","bid_amount"]
[1772124311567,8.4449476,85.53,85.461,6.88454529]
[1772124311568,10.5255,85.504,85.461,6.88454529]
[1772124313266,8.44040167,85.524,85.461,6.88454529]
[1772124313471,8.44040167,85.523,85.461,6.88454529]
[1772124313766,8.44040167,85.529,85.461,6.88454529]
[1772124313974,10.5243,85.514,85.461,6.88454529]
[1772124314176,8.44040167,85.529,85.464,6.89416687]
[1772124314372,8.44040167,85.528,85.464,6.89416687]
[1772124314574,8.44040167,85.527,85.464,6.89416687]
[1772124314767,8.44040167,85.526,85.464,6.89416687]
[1772124314965,10.5263,85.498,85.464,6.89416687]
[1772124315173,8.44040167,85.524,85.464,6.89416687]
[1772124315373,8.44040167,85.523,85.464,6.89416687]
[1772124315671,8.4449476,85.51,85.431,6.90469918]
[1772124316078,8.44040167,85.509,85.431,6.90469918]
[1772124316273,8.44040167,85.508,85.431,6.90469918]
[1772124316580,8.44040167,85.507,85.431,6.90469918]
[1772124316776,8.44040167,85.509,85.431,6.90469918]
[1772124316976,8.44040167,85.509,85.379,35.01]
[1772124316977,8.4449476,85.49,85.415,6.90000745]
[1772124317575,10.5298,85.469,85.418,6.90000745]
[1772124317874,8.4449476,85.49,85.402,203.85067635]
[1772124318072,8.4449476,85.47,85.403,6.90000745]
[1772124318274,16.88534927,85.49,85.403,6.90000745]
[1772124318478,8.4449476,85.47,85.403,6.90000745]
[1772124318776,8.4449476,85.47,85.387,6.90000745]
[1772124319179,8.4449476,85.45,85.387,6.90000745]
[1772124319373,8.4449476,85.45,85.366,6.88280293]
[1772124319573,8.4449476,85.43,85.366,6.88280293]
[1772124319783,8.4449476,85.43,85.34,8.4449476]
[1772124319784,8.4449476,85.41,85.329,6.88280293]
[1772124319998,8.4449476,85.34,85.258,21.80515676]
[1772124320179,491.7313,85.41,85.103,164.5013]
[1772124320180,8.4449476,85.29,85.103,164.5013]
[1772124320382,15.0,85.339,85.09,164.5265]
[1772124320383,10.556,85.257,85.225,21.81591863]
[1772124320578,8.4449476,85.24,85.166,21.71375658]
[1772124320776,8.4449476,85.21,85.167,1.429e-05]
[1772124320977,8.4449476,85.21,85.157,20.67355268]
[1772124321181,8.4449476,85.21,85.074,10.5786]
[1772124321182,342.07529345,85.228,85.112,164.483]
[1772124321478,8.4449476,85.2,85.07,10.5791]
[1772124321682,8.4449476,85.2,85.07,19.0240476]
[1772124321880,8.4449476,85.18,85.069,5.26724096]
[1772124322083,340.88924206,85.206,85.07,37.58495025]
[1772124322280,164.3125,85.201,85.07,37.58495025]
[1772124322482,340.88924206,85.206,85.07,37.58495025]
[1772124322780,8.4449476,85.18,85.087,38.40572996]
[1772124322987,8.4449476,85.16,85.087,38.40572996]
[1772124323282,164.3195,85.198,85.087,38.40572996]
[1772124323480,346.15648302,85.206,85.087,38.40572996]
[1772124323790,8.4449476,85.18,85.1,5.85992813]
[1772124323986,8.4449476,85.19,85.101,38.40572996]
[1772124324175,340.88924206,85.206,85.101,38.40572996]
[1772124324380,8.4449476,85.19,85.101,38.40572996]
[1772124324577,340.88924206,85.206,85.101,38.40572996]
[1772124324782,340.88924206,85.206,85.109,38.40572996]
[1772124324978,340.88924206,85.206,85.121,38.27313378]
[1772124325176,340.88924206,85.206,85.064,164.5766]
[1772124325177,340.88924206,85.206,85.139,38.27313378]
[1772124325679,340.88924206,85.206,85.147,5.85992813]
[1772124325880,340.88924206,85.206,85.139,38.27313378]
[1772124326086,8.4449476,85.19,85.118,38.27313378]
[1772124326482,8.4449476,85.19,85.097,38.27313378]
[1772124326483,8.4449476,85.17,85.097,38.27313378]
[1772124326677,8.4449476,85.17,85.061,38.27313378]
[1772124327281,8.4449476,85.15,85.071,38.19162979]
[1772124327676,164.2705,85.223,85.071,44.05155792]
[1772124327888,8.4449476,85.16,85.071,38.19162979]
[1772124328080,5.28192474,85.186,85.046,38.19162979]
[1772124328282,164.4992,85.105,84.995,38.19162979]
[1772124328482,8.4449476,85.09,84.995,38.19162979]
[1772124328785,164.344,85.185,85.029,38.19162979]
[1772124328980,2.04564492,85.136,85.029,38.19162979]
[1772124329184,8.4449476,85.14,85.041,38.04713801]
[1772124329384,8.4449476,85.16,85.061,38.04713801]
[1772124329583,8.4449476,85.16,85.071,38.04713801]
[1772124329880,8.4449476,85.2,85.091,38.04713801]
[1772124330196,5.28284555,85.226,85.111,38.04713801]
[1772124330383,8.4449476,85.18,85.111,38.04713801]
[1772124330781,8.4449476,85.12,85.006,38.13956391]
[1772124330985,8.4449476,85.12,84.948,164.8007]
[1772124330986,282.84225948,85.145,85.011,38.13956391]
[1772124331287,282.84225948,85.145,85.051,38.13956391]
[1772124332088,8.4449476,85.18,85.073,38.13956391]
[1772124332388,164.4553,85.127,85.0,46.58451151]
[1772124332580,8.4449476,85.09,85.0,38.13956391]
[1772124332787,8.4449476,85.09,84.991,38.12403642]
[1772124332987,8.4449476,85.09,84.997,38.12403642]
[1772124333187,10.5769,85.089,84.997,38.12403642]
[1772124333382,164.4292,85.141,84.96,154.57200223]
[1772124333383,21.76727108,85.15,85.017,38.12403642]
[1772124333789,164.3725,85.17,85.021,38.12403642]
[1772124333790,21.76727108,85.17,85.021,38.12403642]
[1772124333989,21.76727108,85.17,85.041,38.12403642]
[1772124334186,10.5699,85.145,85.041,38.12403642]
[1772124334383,164.3275,85.194,85.043,38.12403642]
[1772124334692,10.5717,85.13,85.043,38.12403642]
[1772124334892,21.76727108,85.14,85.043,38.12403642]
[1772124335190,493.3973,85.122,84.984,38.05067303]
[1772124335394,164.5943,85.056,84.977,17.66861429]
[1772124335594,164.6368,85.034,84.977,6.849e-05]
[1772124335792,5.28426144,85.086,84.977,6.849e-05]
[1772124335793,164.5332,85.087,84.977,38.05067303]
[1772124335997,21.76727108,85.09,84.977,38.05067303]
[1772124336190,21.76727108,85.11,84.977,38.05067303]
[1772124336493,5.28728338,85.096,84.977,38.05067303]
[1772124336799,21.76727108,85.12,84.992,10.5889]
[1772124337101,10.5724,85.125,84.992,10.5889]
[1772124337294,21.76727108,85.13,85.0,21.76727108]
[1772124337490,287.41043241,85.135,85.0,21.76727108]
[1772124337687,287.41043241,85.135,85.02,28.47493327]
[1772124338190,297.98153241,85.135,85.02,28.47493327]
[1772124338393,164.4623,85.124,85.02,28.47493327]
[1772124338699,164.4623,85.124,84.993,28.47493327]
[1772124338700,21.76727108,85.09,84.993,28.47493327]
[1772124338999,21.76727108,85.09,84.935,164.8255]
[1772124339000,21.76727108,85.09,84.967,28.54833014]
[1772124339197,10.5799,85.065,84.967,28.54833014]
[1772124339397,21.76727108,85.09,84.967,28.54833014]
[1772124339786,5.28862545,85.086,84.98,21.76727108]
[1772124339986,21.76727108,85.14,85.001,28.54849615]
[1772124340192,164.4594,85.125,85.001,28.54849615]
[1772124340398,5.28862545,85.126,85.001,28.54849615]
[1772124340399,10.5749,85.105,85.001,28.54849615]
[1772124341298,21.76727108,85.12,85.001,28.54849615]
[1772124341492,5.28862545,85.116,85.001,28.54849615]
[1772124341799,21.76727108,85.12,85.001,28.54849615]
[1772124341998,164.6514,85.026,84.937,28.52888521]
[1772124342293,35.01,85.054,84.834,165.0222]
[1772124342294,21.76727108,85.0,84.882,28.52888521]
[1772124342495,164.6094,85.048,84.899,10.6004]
[1772124342496,5.28955648,85.006,84.899,10.6004]
[1772124342795,10.5867,85.01,84.9,28.52888521]
[1772124342991,21.76727108,85.02,84.906,28.54760496]
[1772124343198,21.76727108,85.04,84.911,28.54760496]
[1772124343591,10.583,85.039,84.926,28.54760496]
[1772124343797,21.76727108,85.04,84.926,28.54760496]
[1772124344193,164.5665,85.07,84.929,28.54760496]
[1772124344395,21.76727108,85.02,84.929,28.54760496]
[1772124344598,10.5867,85.01,84.929,28.54760496]
[1772124344797,21.76727108,85.02,84.929,28.54760496]
[1772124344998,21.76727108,85.0,84.871,28.65852571]
[1772124345200,10.5905,84.979,84.879,28.65852571]
[1772124345393,164.6712,85.016,84.879,33.95198068]
[1772124345595,164.6494,85.027,84.879,33.95198068]
[1772124345596,21.76727108,85.0,84.879,28.65852571]
[1772124345793,21.76727108,85.02,84.891,28.65852571]
[1772124346193,10.5864,85.012,84.904,28.65852571]
[1772124346393,164.7329,84.984,84.88,28.65852571]
[1772124346609,21.76727108,84.98,84.88,28.65852571]
[1772124346899,164.6674,85.018,84.88,28.65852571]
[1772124347098,5.29345497,85.016,84.88,28.65852571]
[1772124347297,10.5884,84.996,84.902,28.53714007]
[1772124347891,10.5903,84.981,84.902,28.53714007]
[1772124348705,10.5903,84.981,84.817,165.0546]
[1772124348706,21.76727108,85.03,84.91,28.53714007]
[1772124348895,164.6176,85.043,84.922,28.7626227]
[1772124349201,10.581,85.056,84.931,28.7626227]
[1772124349401,21.76727108,85.06,84.931,28.7626227]
[1772124349701,21.76727108,85.06,84.94,28.7626227]
[1772124349901,10.5828,85.041,84.94,28.7626227]
[1772124351692,10.5828,85.041,84.941,28.73746188]
[1772124351897,10.5847,85.026,84.941,28.73746188]
[1772124352298,40.30468136,85.056,84.941,28.73746188]
[1772124352299,21.76727108,85.06,84.941,28.73746188]
[1772124352503,21.76727108,85.07,84.941,28.73746188]
[1772124352799,21.76727108,85.07,84.964,28.70442823]
[1772124353099,10.584,85.032,84.964,28.70442823]
[1772124353292,21.76727108,85.07,84.966,28.70442823]
[1772124353498,164.5386,85.084,84.97,28.70442823]
[1772124353800,164.5162,85.096,84.97,28.70442823]
[1772124353801,21.76727108,85.05,84.97,28.70442823]
[1772124353999,10.5846,85.026,84.97,28.70442823]
[1772124354699,21.76727108,85.05,84.956,10.5933]
[1772124355094,10.5841,85.03,84.956,10.5933]
[1772124355300,10.5841,85.03,84.962,28.67286581]
[1772124355495,21.76727108,85.05,84.962,28.67286581]
[1772124355700,35.01,85.069,84.972,10.5912]
[1772124355901,35.01,85.069,84.973,28.67286581]
[1772124357104,35.01,85.089,84.973,28.67286581]
[1772124357402,5.2929613,85.076,84.973,28.67286581]
[1772124358001,10.5833,85.037,84.973,39.26406581]
[1772124358409,10.5833,85.037,84.973,28.67286581]
[1772124358602,10.5844,85.028,84.973,28.67286581]
[1772124358904,35.01,85.049,84.93,28.67016438]
[1772124359113,10.5846,85.027,84.961,28.65756559]
[1772124359303,35.01,85.049,84.961,28.65756559]
[1772124359701,10.5846,85.027,84.962,10.5925]
[1772124360105,35.01,85.048,84.963,28.65756559]
[1772124360402,35.01,85.068,84.966,28.65756559]
[1772124360909,35.01,85.059,84.946,28.65756559]
[1772124361205,10.5841,85.031,84.964,10.5923]
[1772124361409,10.5841,85.031,84.965,28.63844191]
[1772124361605,35.01,85.059,84.965,28.63844191]
[1772124361906,35.01,85.058,84.965,28.63844191]
[1772124362411,35.01,85.058,84.875,164.942]
[1772124362412,35.01,85.019,84.915,28.63844191]
[1772124362798,21.1662,85.039,84.915,28.63844191]
[1772124363008,35.01,85.038,84.942,28.58828598]
[1772124363199,32.69199721,85.06,84.942,28.58828598]
[1772124363403,10.77799392,85.059,84.942,28.58828598]
[1772124364005,35.01,85.039,84.942,28.58828598]
[1772124364209,10.77799392,85.038,84.942,28.58828598]
[1772124364398,10.77799392,85.037,84.942,28.58828598]
[1772124364605,10.5863,85.013,84.955,28.58828598]
[1772124364804,164.7176,84.992,84.843,28.59284747]
[1772124365008,164.7176,84.992,84.793,165.102]
[1772124365009,164.8843,84.906,84.787,1.429e-05]
[1772124365201,35.01,84.886,84.787,1.429e-05]
[1772124365408,10.83692475,84.885,84.787,1.429e-05]
[1772124365711,32.69199721,84.88,84.787,1.429e-05]
[1772124365905,32.69199721,84.86,84.787,1.429e-05]
[1772124366111,10.83692475,84.859,84.787,1.429e-05]
[1772124366312,10.6089,84.832,84.787,1.429e-05]
[1772124366515,32.69199721,84.86,84.787,1.429e-05]
[1772124366805,10.8635004,84.859,84.787,1.429e-05]
[1772124367010,10.8635004,84.858,84.787,1.429e-05]
[1772124367211,10.8635004,84.857,84.787,1.429e-05]
[1772124367412,10.33289455,84.839,84.732,14.15347028]
[1772124367717,10.8635004,84.838,84.734,14.15347028]
[1772124367902,21.2168,84.836,84.736,14.15347028]
[1772124368104,32.0803004,84.836,84.736,14.15347028]
[1772124368306,21.2176,84.833,84.736,14.15347028]
[1772124368511,32.69199721,84.84,84.736,14.15347028]
[1772124368906,10.6124,84.804,84.736,14.15347028]
[1772124369107,10.77597072,84.839,84.738,14.07074871]
[1772124369308,32.69199721,84.82,84.74,14.07074871]
[1772124369513,32.69199721,84.82,84.741,17.0]
[1772124369811,32.69199721,84.82,84.741,12.44]
[1772124370009,165.0043,84.844,84.741,12.44]
[1772124370010,164.9828,84.855,84.742,14.07120268]
[1772124370203,10.75113257,84.854,84.744,14.07120268]
[1772124370405,10.6131,84.798,84.746,14.07120268]
[1772124370607,197.60779721,84.89,84.751,14.07120268]
[1772124370811,10.75040829,84.889,84.771,14.08526354]
[1772124371108,10.33289455,84.919,84.771,14.08526354]
[1772124371109,32.69199721,84.91,84.771,14.08526354]
[1772124371312,10.75930161,84.909,84.771,14.08526354]
[1772124371506,21.2014,84.898,84.771,14.08526354]
[1772124372106,164.9086,84.893,84.771,14.08526354]
[1772124372312,32.69199721,84.91,84.771,14.08526354]
[1772124372512,164.9023,84.897,84.771,14.08526354]
[1772124372715,21.2039,84.888,84.771,14.08526354]
[1772124373107,21.204,84.887,84.771,14.08526354]
[1772124373408,164.9161,84.89,84.791,14.03008397]
[1772124373612,10.6053,84.861,84.791,14.03008397]
[1772124374014,32.69199721,84.91,84.791,14.03008397]
[1772124374214,32.69199721,84.93,84.801,14.03008397]
[1772124374409,21.1905,84.942,84.821,14.03008397]
[1772124374609,32.69199721,84.96,84.821,14.03008397]
[1772124374910,164.7574,84.971,84.841,14.03008397]
[1772124375111,10.5996,84.907,84.841,14.03008397]
[1772124375307,32.69199721,84.93,84.812,14.03310366]
[1772124375916,32.69199721,84.93,84.818,14.03310366]
[1772124376311,10.6058,84.857,84.773,14.03310366]
[1772124376513,21.1985,84.909,84.773,14.03310366]
[1772124376714,32.69199721,84.91,84.78,14.03310366]
[1772124376911,32.69199721,84.91,84.791,13.95004251]
[1772124377107,32.69199721,84.89,84.773,13.95004251]
[1772124377507,35.01,84.915,84.773,13.95004251]
[1772124377812,164.8618,84.918,84.801,13.95004251]
[1772124378018,5.30333233,84.906,84.801,13.95004251]
[1772124378310,164.8409,84.928,84.801,13.95004251]
[1772124378515,5.30477326,84.906,84.801,13.95004251]
[1772124378915,5.30477326,84.906,84.718,299.0]
[1772124378916,32.69199721,84.87,84.746,13.93290598]
[1772124379214,32.69199721,84.89,84.751,13.93290598]
[1772124379416,32.69199721,84.89,84.771,13.93290598]
[1772124379614,164.8612,84.918,84.773,13.93290598]
[1772124379615,10.605,84.863,84.773,13.93290598]
[1772124379815,164.9104,84.892,84.773,13.93290598]
[1772124380016,5.30343225,84.896,84.773,13.93290598]
[1772124380218,10.6058,84.857,84.773,13.93290598]
[1772124380715,10.6077,84.841,84.773,13.93290598]
[1772124381109,32.69199721,84.88,84.773,13.93290598]
[1772124381315,10.6062,84.854,84.773,13.93290598]
[1772124381511,164.9185,84.888,84.773,13.93290598]
[1772124381710,164.9544,84.87,84.773,13.93290598]
[1772124382015,10.6077,84.841,84.773,13.93290598]
[1772124382214,32.69199721,84.88,84.773,13.93290598]
[1772124382414,164.9047,84.895,84.773,13.93290598]
[1772124382619,164.9047,84.895,84.75,32.69199721]
[1772124382620,5.30395448,84.876,84.751,13.89048866]
[1772124382820,164.9242,84.885,84.751,13.89048866]
[1772124383119,10.608,84.839,84.753,10.6186]
[1772124383314,10.608,84.839,84.754,13.89048866]
[1772124384018,10.608,84.839,84.757,10.6182]
[1772124384217,10.608,84.839,84.758,13.89612498]
[1772124384418,32.69199721,84.87,84.758,13.89612498]
[1772124384912,165.0099,84.841,84.746,13.89612498]
[1772124385111,164.9999,84.846,84.746,13.89612498]
[1772124385514,5.30467071,84.846,84.746,13.89612498]
[1772124385714,10.6122,84.805,84.746,13.89612498]
[1772124386320,10.6136,84.794,84.746,13.89612498]
[1772124386716,165.0329,84.829,84.723,13.85473519]
[1772124386916,165.0398,84.826,84.723,13.85473519]
[1772124387217,165.023,84.835,84.723,13.85473519]
[1772124387418,32.69199721,84.82,84.723,13.85473519]
[1772124388012,10.6147,84.786,84.745,21.30825161]
[1772124389414,165.0233,84.834,84.746,13.86825161]
[1772124389619,5.30558108,84.836,84.746,13.86825161]
[1772124389926,165.0174,84.837,84.746,13.86825161]
[1772124390221,165.0448,84.823,84.746,13.86825161]
[1772124390421,165.0674,84.812,84.745,7.44]
[1772124390621,32.69199721,84.82,84.745,7.44]
[1772124391024,32.69199721,84.84,84.746,13.76316038]
[1772124391321,5.30607793,84.816,84.745,7.44]
[1772124391522,5.30607793,84.816,84.746,13.76316038]
[1772124391718,165.0739,84.808,84.718,13.76316038]
[1772124391923,165.113,84.788,84.671,13.76316038]
[1772124392423,21.2303,84.782,84.671,13.76316038]
[1772124392825,10.6216,84.731,84.671,13.76316038]
[1772124393015,165.1709,84.759,84.654,13.76128177]
[1772124393216,5.3059747,84.776,84.553,464.5703]
[1772124393217,5.3059747,84.776,84.671,13.76128177]
[1772124393520,458.88685185,84.784,84.691,13.76128177]
[1772124394114,165.1249,84.782,84.691,13.76128177]
[1772124394319,32.69199721,84.78,84.691,13.76128177]
[1772124394715,458.88685185,84.784,84.691,13.76128177]
[1772124395318,10.6175,84.763,84.691,13.76128177]
[1772124395716,32.69199721,84.82,84.701,13.78410283]
[1772124395915,165.0369,84.827,84.701,13.78410283]
[1772124396324,21.2196,84.825,84.701,13.78410283]
[1772124396516,165.0519,84.82,84.701,13.78410283]
[1772124396721,165.0576,84.817,84.701,13.78410283]
[1772124396928,165.0757,84.807,84.701,13.78410283]
[1772124397124,165.0879,84.801,84.701,13.78410283]
[1772124397420,165.09,84.8,84.701,13.78410283]
[1772124397627,32.69199721,84.8,84.701,13.78410283]
[1772124397825,32.69199721,84.74,84.59,32.69199721]
[1772124398126,10.6284,84.677,84.57,32.69199721]
[1772124398320,5.30874826,84.726,84.59,32.69199721]
[1772124398524,32.69199721,84.74,84.61,32.69199721]
[1772124398820,165.2072,84.74,84.62,32.69199721]
[1772124399028,5.30874826,84.736,84.62,32.69199721]
[1772124399217,10.6232,84.718,84.629,5.30874826]
[1772124399417,452.5176346,84.755,84.64,32.69199721]
[1772124399936,10.6198,84.745,84.661,7.08815773]
[1772124400120,452.5176346,84.755,84.661,7.08815773]
[1772124401424,10.6216,84.731,84.661,7.08815773]
[1772124401625,452.5176346,84.755,84.661,7.08815773]
[1772124401820,165.1967,84.745,84.661,7.08815773]
[1772124402230,165.1834,84.752,84.661,7.08815773]
[1772124402431,452.5176346,84.755,84.661,7.08815773]
[1772124402934,10.6212,84.733,84.661,7.08815773]
[1772124403122,452.5176346,84.755,84.671,7.05247278]
[1772124404027,10.618,84.759,84.671,7.05247278]
[1772124404234,32.69199721,84.81,84.671,7.05247278]
[1772124404429,10.6129,84.8,84.691,7.05247278]
[1772124404627,165.0885,84.801,84.691,7.05247278]
[1772124404829,32.69199721,84.81,84.69,32.69199721]
[1772124404830,165.0382,84.827,84.693,7.03235987]
[1772124405130,165.0382,84.827,84.7,7.03235987]
[1772124405334,165.0471,84.822,84.7,7.03235987]
[1772124405532,165.072,84.809,84.7,7.03235987]
[1772124405833,165.0584,84.816,84.7,7.03235987]
[1772124406227,165.0553,84.818,84.7,7.03235987]
[1772124406422,165.118,84.786,84.7,7.03235987]
[1772124406627,32.69199721,84.79,84.7,7.03235987]
[1772124406831,0.87552097,84.785,84.65,32.69199721]
[1772124407130,0.87552097,84.784,84.67,32.69199721]
[1772124407531,10.6167,84.769,84.677,10.6282]
[1772124407731,0.87552097,84.836,84.73,32.69199721]
[1772124408134,0.87552097,84.859,84.75,32.69199721]
[1772124408335,32.69199721,84.88,84.77,32.69199721]
[1772124408539,0.87552097,84.879,84.77,32.69199721]
[1772124408833,0.87552097,84.879,84.771,3.72669275]
[1772124409034,0.90866268,84.906,84.791,3.72669275]
[1772124409235,0.90866268,84.906,84.779,5.30692769]
[1772124409236,10.5973,84.925,84.83,32.69199721]
[1772124409537,164.7753,84.962,84.789,165.1093]
[1772124409538,0.90866268,84.957,84.851,3.72669275]
[1772124409734,10.5914,84.972,84.869,3.72669275]
[1772124409943,0.90866268,84.976,84.869,3.72669275]
[1772124410536,0.90866268,84.955,84.869,3.72669275]
[1772124410735,0.90866268,84.949,84.869,3.72669275]
[1772124410931,0.95098113,84.944,84.831,3.72669275]
[1772124411534,10.5952,84.941,84.84,3.72669275]
[1772124411935,10.5952,84.941,84.851,3.72669275]
[1772124412137,10.5971,84.926,84.851,3.72669275]
[1772124412334,10.5971,84.926,84.785,165.1172]
[1772124412335,0.95098113,84.929,84.801,3.72669275]
[1772124412743,10.5989,84.912,84.81,3.72669275]
[1772124412930,32.69199721,84.95,84.821,3.72669275]
[1772124413132,0.95098113,84.956,84.831,3.72669275]
[1772124413332,10.5966,84.93,84.833,3.72669275]
[1772124413642,1.10946662,84.955,84.833,3.72669275]
[1772124413844,1.10946662,84.937,84.833,3.72669275]
[1772124414045,10.5997,84.906,84.833,3.72669275]
[1772124414344,1.10946662,84.937,84.833,3.72669275]
[1772124414544,10.5995,84.908,84.833,3.72669275]
[1772124414745,1.10946662,84.937,84.833,3.72669275]
[1772124415342,10.6008,84.897,84.833,3.72669275]
[1772124415543,1.10330522,84.909,84.808,3.72669275]
[1772124415935,10.6026,84.883,84.808,3.72669275]
[1772124416134,1.10330522,84.909,84.808,3.72669275]
[1772124416335,1.10330522,84.933,84.808,3.72669275]
[1772124416835,10.6006,84.898,84.811,3.72669275]
[1772124417147,1.10994769,84.929,84.811,3.72669275]
[1772124417742,10.6005,84.899,84.821,3.72669275]
[1772124418636,10.602,84.887,84.823,3.72669275]
[1772124419242,1.10994769,84.929,84.823,3.72669275]
[1772124419443,10.6005,84.899,84.823,3.72669275]
[1772124419645,1.10994769,84.929,84.823,3.72669275]
[1772124419844,1.11271765,84.922,84.823,3.72669275]
[1772124420046,1.11271765,84.916,84.823,3.72669275]
[1772124420350,1.11271765,84.908,84.823,3.72669275]
[1772124420545,1.16552164,84.889,84.8,3.72669275]
[1772124420944,1.16552164,84.889,84.76,32.69199721]
[1772124420945,1.16600013,84.875,84.777,3.72669275]
[1772124421146,1.16600013,84.884,84.781,3.72669275]
[1772124422549,1.62817794,84.876,84.781,3.72669275]
[1772124423157,1.6233152,84.866,84.741,3.72669275]
[1772124423467,1.6233152,84.861,84.744,3.72669275]
[1772124423847,10.6119,84.808,84.744,3.72669275]
[1772124424055,1.85120853,84.854,84.744,3.72669275]
[1772124424762,1.85120853,84.854,84.75,3.72669275]
[1772124425259,2.29648951,84.852,84.75,3.72669275]
[1772124425459,21.8783693,84.86,84.75,3.72669275]
[1772124425460,2.29648951,84.844,84.75,3.72669275]
[1772124425655,10.6122,84.806,84.75,3.72669275]
[1772124425861,21.8783693,84.86,84.75,3.72669275]
[1772124426063,2.29822032,84.867,84.75,3.72669275]
[1772124426355,2.29822032,84.867,84.74,21.8783693]
[1772124426356,2.51681247,84.863,84.76,3.72669275]
[1772124427151,2.53429886,84.841,84.76,3.72669275]
[1772124427552,10.6105,84.819,84.76,3.72669275]
[1772124428158,10.6117,84.81,84.76,3.72669275]
[1772124428564,2.53429886,84.841,84.76,3.72669275]
[1772124428758,2.96592899,84.839,84.76,3.72669275]
[1772124428960,2.96572842,84.829,84.738,3.72669275]
[1772124429158,2.96572842,84.815,84.701,3.72669275]
[1772124429357,3.1769321,84.791,84.701,3.72669275]
[1772124429556,165.0677,84.812,84.657,434.68506599]
[1772124429557,3.38978371,84.778,84.672,3.72669275]
[1772124429965,10.618,84.759,84.694,4.72318529]
[1772124430364,3.59979966,84.753,84.671,4.72318529]
[1772124430761,3.59979966,84.776,84.671,4.72318529]
[1772124430966,10.6211,84.734,84.671,4.72318529]
[1772124431357,3.59979966,84.776,84.671,4.72318529]
[1772124431763,10.6224,84.724,84.671,4.72318529]
[1772124431962,3.59979966,84.776,84.671,4.72318529]
[1772124432368,3.59979966,84.776,84.682,4.72318529]
[1772124432962,10.6206,84.738,84.682,4.72318529]
[1772124433163,3.93422568,84.755,84.661,4.72318529]
[1772124433362,3.93422568,84.755,84.638,4.72318529]
[1772124433562,3.93422568,84.755,84.65,4.72318529]
[1772124433866,4.13395741,84.779,84.661,4.72318529]
[1772124434168,10.6186,84.754,84.678,4.72318529]
[1772124434768,10.6186,84.754,84.684,4.72318529]
[1772124434961,10.6172,84.765,84.684,4.72318529]
[1772124435164,4.13395741,84.779,84.684,4.72318529]
[1772124435665,4.53896136,84.762,84.664,4.72318529]
[1772124436066,10.62,84.743,84.676,4.72318529]
[1772124436266,21.2283,84.79,84.676,4.72318529]
[1772124436267,4.53960298,84.786,84.676,4.72318529]
[1772124436662,0.05901301,84.732,84.69,4.72318529]
[1772124436969,4.53960298,84.786,84.69,4.72318529]
[1772124437269,10.6172,84.766,84.702,4.72318529]
[1772124438867,10.6159,84.776,84.702,4.72318529]
[1772124439066,5.05234184,84.809,84.702,4.72318529]
[1772124439468,5.05234184,84.809,84.735,10.6209]
[1772124439667,5.05234184,84.809,84.736,4.72318529]
[1772124439869,5.05234184,84.832,84.736,4.72318529]
[1772124440070,5.05234184,84.832,84.754,4.72318529]
[1772124440574,5.05234184,84.832,84.721,4.72318529]
[1772124440965,5.05234184,84.832,84.73,4.72318529]
[1772124441471,10.6105,84.819,84.751,4.72318529]
[1772124441673,5.05234184,84.832,84.751,4.72318529]
[1772124441868,10.6128,84.801,84.743,10.6199]
[1772124442172,5.05234184,84.829,84.743,10.6199]
[1772124442566,5.05234184,84.829,84.687,35.35]
[1772124442567,5.05234184,84.829,84.733,4.72318529]
[1772124443579,5.05234184,84.829,84.73,8.58187199]
[1772124443580,5.05234184,84.829,84.753,4.72318529]
[1772124443980,5.05234184,84.806,84.733,4.72318529]
[1772124444579,10.6138,84.793,84.733,4.72318529]
[1772124445080,5.05234184,84.806,84.733,4.72318529]
[1772124445580,5.05234184,84.806,84.735,4.72318529]
[1772124446171,15.66454184,84.806,84.746,10.6195]
[1772124446370,5.05234184,84.829,84.741,4.72318529]
[1772124446975,10.6121,84.807,84.754,10.6185]
[1772124447371,10.6109,84.816,84.754,10.6185]
[1772124447576,5.05234184,84.829,84.745,4.72318529]
[1772124447974,10.613,84.799,84.745,4.72318529]
[1772124448177,5.05234184,84.829,84.747,4.72318529]
[1772124448682,5.05234184,84.829,84.748,10.6193]
[1772124448982,5.05234184,84.829,84.749,4.72318529]
[1772124449279,10.6118,84.809,84.749,4.72318529]
[1772124449877,10.6105,84.819,84.749,4.72318529]
[1772124450382,10.6094,84.828,84.761,4.72318529]
[1772124450778,5.05234184,84.853,84.761,4.72318529]
[1772124451178,5.05234184,84.853,84.774,7.05434183]
[1772124451780,10.6087,84.833,84.777,10.6157]
[1772124451980,5.05234184,84.853,84.778,7.05434183]
[1772124452382,5.05234184,84.853,84.785,10.6146]
[1772124453190,10.6091,84.83,84.778,7.05434183]
[1772124453387,5.05234184,84.853,84.778,7.05434183]
[1772124453988,10.607,84.847,84.792,10.6138]